[Event "Titled Tuesday Blitz August 15 Early 2023"]
[White "Martinez, Shawn"]
[Black "Nikulina, Alena"]
[WhiteFideId "2039770"]
[BlackFideId "4172051"]
[WhiteElo "2336"]
[BlackElo "2084"]
[Result "0-1"]
[Round "9"]
[TimeControl "180+1"]
[Date "2023.08.15"]
[WhiteClock "0:00:07"]
[BlackClock "0:00:10"]
[Board "142"]

1. e4 {[%clk 0:02:18]}  c5 {[%clk 0:02:59]} 2. Nc3 {[%clk 0:02:17]}  e6 {[%clk 0:02:58]} 3. g3 {[%clk 0:02:16]}  Nc6 {[%clk 0:02:56]} 4. Bg2 {[%clk 0:02:16]}  g6 {[%clk 0:02:55]} 5. Nge2 {[%clk 0:02:17]}  Bg7 {[%clk 0:02:56]} 6. O-O {[%clk 0:02:13]}  Nge7 {[%clk 0:02:56]} 7. d3 {[%clk 0:02:12]}  O-O {[%clk 0:02:55]} 8. Be3 {[%clk 0:02:11]}  b6 {[%clk 0:02:54]} 9. Qd2 {[%clk 0:02:04]}  d5 {[%clk 0:02:53]} 10. Bh6 {[%clk 0:02:03]}  d4 {[%clk 0:02:53]} 11. Nd1 {[%clk 0:01:50]}  e5 {[%clk 0:02:48]} 12. Bxg7 {[%clk 0:01:48]}  Kxg7 {[%clk 0:02:48]} 13. f4 {[%clk 0:01:49]}  Bg4 {[%clk 0:02:31]} 14. Nf2 {[%clk 0:01:39]}  Qd7 {[%clk 0:02:24]} 15. h3 {[%clk 0:01:26]}  Be6 {[%clk 0:02:16]} 16. g4 {[%clk 0:01:22]}  f5 {[%clk 0:02:06]} 17. fxe5 {[%clk 0:01:20]}  fxg4 {[%clk 0:01:54]} 18. Nf4 {[%clk 0:01:13]}  g3 {[%clk 0:01:39]} 19. Nxe6+ {[%clk 0:01:10]}  Qxe6 {[%clk 0:01:39]} 20. Ng4 {[%clk 0:01:11]}  Nxe5 {[%clk 0:01:29]} 21. Qh6+ {[%clk 0:01:08]}  Kg8 {[%clk 0:01:28]} 22. Qg5 {[%clk 0:01:05]}  Nxg4 {[%clk 0:01:22]} 23. hxg4 {[%clk 0:01:04]}  Rf2 {[%clk 0:01:04]} 24. Rxf2 {[%clk 0:00:57]}  gxf2+ {[%clk 0:01:03]} 25. Kxf2 {[%clk 0:00:58]}  Rf8+ {[%clk 0:01:03]} 26. Kg1 {[%clk 0:00:52]}  Nc6 {[%clk 0:00:56]} 27. Qd5 {[%clk 0:00:20]}  Qxd5 {[%clk 0:00:55]} 28. exd5 {[%clk 0:00:21]}  Nb4 {[%clk 0:00:55]} 29. Re1 {[%clk 0:00:15]}  Nxc2 {[%clk 0:00:49]} 30. Re7 {[%clk 0:00:14]}  Rf7 {[%clk 0:00:48]} 31. Re8+ {[%clk 0:00:13]}  Kg7 {[%clk 0:00:48]} 32. d6 {[%clk 0:00:14]}  Ne3 {[%clk 0:00:43]} 33. Bc6 {[%clk 0:00:13]}  Rf1+ {[%clk 0:00:25]} 34. Kh2 {[%clk 0:00:13]}  Nxg4+ {[%clk 0:00:25]} 35. Kg3 {[%clk 0:00:12]}  Nf6 {[%clk 0:00:23]} 36. d7 {[%clk 0:00:12]}  Nxd7 {[%clk 0:00:23]} 37. Bxd7 {[%clk 0:00:12]}  Rd1 {[%clk 0:00:19]} 38. Bb5 {[%clk 0:00:10]}  Rd2 {[%clk 0:00:18]} 39. Bc4 {[%clk 0:00:10]}  Rxb2 {[%clk 0:00:16]} 40. a4 {[%clk 0:00:11]}  h5 {[%clk 0:00:15]} 41. Re7+ {[%clk 0:00:11]}  Kf6 {[%clk 0:00:14]} 42. Rxa7 {[%clk 0:00:11]}  g5 {[%clk 0:00:14]} 43. Ra6 {[%clk 0:00:11]}  Kf5 {[%clk 0:00:13]} 44. Bd5 {[%clk 0:00:08]}  h4+ {[%clk 0:00:13]} 45. Kh3 {[%clk 0:00:09]}  Kf4 {[%clk 0:00:13]} 46. Be4 {[%clk 0:00:08]}  g4+ {[%clk 0:00:10]} 47. Kxh4 {[%clk 0:00:07]}  Rh2# {[%clk 0:00:10]} 0-1


[Site "https://www.chess.com"]

[Event "Titled Tuesday Blitz August 15 Early 2023"]
[White "Wilson, Otis"]
[Black "Saito, Vinicius"]
[WhiteFideId "30904021"]
[BlackFideId "2113384"]
[WhiteElo "1998"]
[BlackElo "2335"]
[Result "0-1"]
[Round "9"]
[TimeControl "180+1"]
[Date "2023.08.15"]
[WhiteClock "0:00:00"]
[BlackClock "0:00:58"]
[Board "143"]

1. d4 {[%clk 0:03:00]}  Nf6 {[%clk 0:02:58]} 2. c4 {[%clk 0:03:01]}  g6 {[%clk 0:02:57]} 3. Nc3 {[%clk 0:03:01]}  Bg7 {[%clk 0:02:58]} 4. e4 {[%clk 0:03:02]}  d6 {[%clk 0:02:58]} 5. Be2 {[%clk 0:03:03]}  O-O {[%clk 0:02:58]} 6. Be3 {[%clk 0:03:02]}  Na6 {[%clk 0:02:56]} 7. h4 {[%clk 0:03:03]}  h5 {[%clk 0:02:55]} 8. f3 {[%clk 0:03:02]}  e5 {[%clk 0:02:53]} 9. Nh3 {[%clk 0:03:00]}  c6 {[%clk 0:02:48]} 10. dxe5 {[%clk 0:02:57]}  dxe5 {[%clk 0:02:48]} 11. Qxd8 {[%clk 0:02:58]}  Rxd8 {[%clk 0:02:48]} 12. a3 {[%clk 0:02:56]}  Nc7 {[%clk 0:02:47]} 13. Rd1 {[%clk 0:02:56]}  Rxd1+ {[%clk 0:02:45]} 14. Kxd1 {[%clk 0:02:56]}  Ne6 {[%clk 0:02:45]} 15. Kc1 {[%clk 0:02:53]}  Bf8 {[%clk 0:02:43]} 16. Rd1 {[%clk 0:02:48]}  b6 {[%clk 0:02:38]} 17. Nf2 {[%clk 0:02:45]}  Bb7 {[%clk 0:02:31]} 18. Nd3 {[%clk 0:02:31]}  Nd7 {[%clk 0:02:29]} 19. g4 {[%clk 0:02:15]}  hxg4 {[%clk 0:02:28]} 20. fxg4 {[%clk 0:02:16]}  Rd8 {[%clk 0:02:26]} 21. h5 {[%clk 0:02:15]}  Be7 {[%clk 0:02:24]} 22. hxg6 {[%clk 0:01:41]}  fxg6 {[%clk 0:02:17]} 23. c5 {[%clk 0:01:30]}  b5 {[%clk 0:02:08]} 24. b4 {[%clk 0:01:28]}  Bc8 {[%clk 0:02:01]} 25. Rd2 {[%clk 0:01:28]}  Bf6 {[%clk 0:01:45]} 26. Bd1 {[%clk 0:01:28]}  Nd4 {[%clk 0:01:44]} 27. Nxe5 {[%clk 0:01:08]}  Nxe5 {[%clk 0:01:37]} 28. Bxd4 {[%clk 0:01:08]}  Nc4 {[%clk 0:01:13]} 29. Bxf6 {[%clk 0:00:31]}  Rxd2 {[%clk 0:01:12]} 30. Bb3 {[%clk 0:00:30]}  Rf2 {[%clk 0:01:10]} 31. g5 {[%clk 0:00:27]}  Be6 {[%clk 0:01:10]} 32. a4 {[%clk 0:00:24]}  a6 {[%clk 0:01:09]} 33. axb5 {[%clk 0:00:19]}  axb5 {[%clk 0:01:10]} 34. e5 {[%clk 0:00:13]}  Kf7 {[%clk 0:01:09]} 35. Ne4 {[%clk 0:00:13]}  Rf1+ {[%clk 0:01:05]} 36. Kc2 {[%clk 0:00:00]}  Bf5 {[%clk 0:00:58]} 0-1


[Site "https://www.chess.com"]

[Event "Titled Tuesday Blitz August 15 Early 2023"]
[White "Valle Maytin, Luis Enrique"]
[Black "Rodriguez Santiago, Jaime"]
[WhiteFideId "3503666"]
[BlackFideId "3100898"]
[WhiteElo "2368"]
[BlackElo "2273"]
[Result "1/2-1/2"]
[Round "9"]
[TimeControl "180+1"]
[Date "2023.08.15"]
[WhiteClock "0:00:05"]
[BlackClock "0:00:05"]
[Board "146"]

1. d4 {[%clk 0:03:00]}  Nf6 {[%clk 0:02:56]} 2. Nf3 {[%clk 0:03:01]}  e6 {[%clk 0:02:55]} 3. e3 {[%clk 0:03:01]}  d5 {[%clk 0:02:54]} 4. Bd3 {[%clk 0:03:02]}  c5 {[%clk 0:02:54]} 5. O-O {[%clk 0:03:02]}  Nc6 {[%clk 0:02:53]} 6. Nbd2 {[%clk 0:03:01]}  Be7 {[%clk 0:02:52]} 7. b3 {[%clk 0:03:01]}  cxd4 {[%clk 0:02:47]} 8. exd4 {[%clk 0:03:00]}  O-O {[%clk 0:02:45]} 9. Bb2 {[%clk 0:03:00]}  b6 {[%clk 0:02:44]} 10. Qe2 {[%clk 0:02:59]}  Bb7 {[%clk 0:02:44]} 11. a4 {[%clk 0:02:59]}  Nb4 {[%clk 0:02:35]} 12. Ne5 {[%clk 0:02:58]}  Nxd3 {[%clk 0:02:33]} 13. Qxd3 {[%clk 0:02:55]}  Rc8 {[%clk 0:02:31]} 14. c3 {[%clk 0:02:51]}  Ne4 {[%clk 0:02:28]} 15. f3 {[%clk 0:02:46]}  Nd6 {[%clk 0:02:24]} 16. Rfe1 {[%clk 0:02:35]}  Re8 {[%clk 0:02:00]} 17. Ba3 {[%clk 0:02:25]}  f6 {[%clk 0:01:52]} 18. Ng4 {[%clk 0:02:22]}  Bf8 {[%clk 0:01:49]} 19. Rac1 {[%clk 0:02:13]}  Qd7 {[%clk 0:01:43]} 20. Bb4 {[%clk 0:01:35]}  a5 {[%clk 0:01:40]} 21. Ba3 {[%clk 0:01:35]}  Bc6 {[%clk 0:01:25]} 22. h4 {[%clk 0:01:17]}  h5 {[%clk 0:01:19]} 23. Nf2 {[%clk 0:01:14]}  Nf5 {[%clk 0:01:19]} 24. Nh3 {[%clk 0:01:07]}  Nxh4 {[%clk 0:01:17]} 25. Nf4 {[%clk 0:01:07]}  Qf7 {[%clk 0:01:14]} 26. Re2 {[%clk 0:01:01]}  Bd7 {[%clk 0:01:12]} 27. Bxf8 {[%clk 0:01:00]}  Rxf8 {[%clk 0:01:11]} 28. Rce1 {[%clk 0:00:59]}  Rfe8 {[%clk 0:01:09]} 29. c4 {[%clk 0:00:59]}  dxc4 {[%clk 0:01:08]} 30. Nxc4 {[%clk 0:00:58]}  g5 {[%clk 0:01:07]} 31. Nd6 {[%clk 0:00:56]}  Qg7 {[%clk 0:01:01]} 32. Nxh5 {[%clk 0:00:45]}  Qh6 {[%clk 0:00:57]} 33. Ng3 {[%clk 0:00:28]}  Ng6 {[%clk 0:00:29]} 34. Nxc8 {[%clk 0:00:27]}  Bxc8 {[%clk 0:00:28]} 35. d5 {[%clk 0:00:22]}  e5 {[%clk 0:00:28]} 36. d6 {[%clk 0:00:21]}  Bd7 {[%clk 0:00:28]} 37. Rc1 {[%clk 0:00:20]}  Nf4 {[%clk 0:00:27]} 38. Qc4+ {[%clk 0:00:18]}  Be6 {[%clk 0:00:27]} 39. Qb5 {[%clk 0:00:15]}  Rd8 {[%clk 0:00:25]} 40. Rd2 {[%clk 0:00:13]}  g4 {[%clk 0:00:23]} 41. Rf1 {[%clk 0:00:12]}  Nh3+ {[%clk 0:00:22]} 42. gxh3 {[%clk 0:00:11]}  Qxd2 {[%clk 0:00:23]} 43. hxg4 {[%clk 0:00:08]}  Qxd6 {[%clk 0:00:20]} 44. Ne4 {[%clk 0:00:07]}  Qd4+ {[%clk 0:00:20]} 45. Kg2 {[%clk 0:00:06]}  Qb2+ {[%clk 0:00:19]} 46. Rf2 {[%clk 0:00:06]}  Qxb3 {[%clk 0:00:19]} 47. Nxf6+ {[%clk 0:00:06]}  Kf7 {[%clk 0:00:20]} 48. Qxb3 {[%clk 0:00:06]}  Bxb3 {[%clk 0:00:19]} 49. Ne4 {[%clk 0:00:06]}  Bxa4 {[%clk 0:00:19]} 50. f4 {[%clk 0:00:06]}  exf4 {[%clk 0:00:19]} 51. Rxf4+ {[%clk 0:00:07]}  Ke6 {[%clk 0:00:18]} 52. g5 {[%clk 0:00:07]}  Bc2 {[%clk 0:00:16]} 53. Nc3 {[%clk 0:00:06]}  Rd2+ {[%clk 0:00:16]} 54. Kf1 {[%clk 0:00:04]}  Ke5 {[%clk 0:00:15]} 55. Rg4 {[%clk 0:00:02]}  b5 {[%clk 0:00:14]} 56. Nxb5 {[%clk 0:00:01]}  Bd3+ {[%clk 0:00:14]} 57. Ke1 {[%clk 0:00:01]}  Re2+ {[%clk 0:00:15]} 58. Kd1 {[%clk 0:00:01]}  Bxb5 {[%clk 0:00:15]} 59. g6 {[%clk 0:00:02]}  Kf6 {[%clk 0:00:08]} 60. g7 {[%clk 0:00:03]}  Re8 {[%clk 0:00:04]} 61. g8=Q {[%clk 0:00:04]}  Be2+ {[%clk 0:00:02]} 62. Kd2 {[%clk 0:00:03]}  Rxg8 {[%clk 0:00:03]} 63. Rxg8 {[%clk 0:00:04]}  Bb5 {[%clk 0:00:03]} 64. Ra8 {[%clk 0:00:04]}  Bd7 {[%clk 0:00:03]} 65. Rxa5 {[%clk 0:00:04]}  Be6 {[%clk 0:00:04]} 66. Ra6 {[%clk 0:00:05]}  Ke7 {[%clk 0:00:05]} 67. Rxe6+ {[%clk 0:00:05]}  Kxe6 {[%clk 0:00:05]} 1/2-1/2


[Site "https://www.chess.com"]

[Event "Titled Tuesday Blitz August 15 Early 2023"]
[White "Kula, Robert"]
[Black "Shapiro, Daniel"]
[WhiteFideId "1101218"]
[BlackFideId "2001780"]
[WhiteElo "2242"]
[BlackElo "2293"]
[Result "0-1"]
[Round "9"]
[TimeControl "180+1"]
[Date "2023.08.15"]
[WhiteClock "0:00:14"]
[BlackClock "0:00:13"]
[Board "147"]

1. e4 {[%clk 0:03:00]}  c5 {[%clk 0:03:00]} 2. c4 {[%clk 0:03:01]}  e6 {[%clk 0:02:57]} 3. Nc3 {[%clk 0:03:01]}  Nc6 {[%clk 0:02:54]} 4. d3 {[%clk 0:03:00]}  g6 {[%clk 0:02:52]} 5. Be3 {[%clk 0:02:58]}  b6 {[%clk 0:02:51]} 6. f4 {[%clk 0:02:57]}  d6 {[%clk 0:02:48]} 7. Nf3 {[%clk 0:02:57]}  Bg7 {[%clk 0:02:47]} 8. g3 {[%clk 0:02:57]}  Nge7 {[%clk 0:02:47]} 9. Bg2 {[%clk 0:02:58]}  Bb7 {[%clk 0:02:47]} 10. O-O {[%clk 0:02:57]}  O-O {[%clk 0:02:47]} 11. a3 {[%clk 0:02:57]}  f5 {[%clk 0:02:46]} 12. Rb1 {[%clk 0:02:54]}  Qd7 {[%clk 0:02:43]} 13. Re1 {[%clk 0:02:35]}  Rad8 {[%clk 0:02:42]} 14. Qe2 {[%clk 0:02:33]}  d5 {[%clk 0:02:30]} 15. exd5 {[%clk 0:02:18]}  exd5 {[%clk 0:02:30]} 16. cxd5 {[%clk 0:02:18]}  Nxd5 {[%clk 0:02:15]} 17. Nxd5 {[%clk 0:02:17]}  Qxd5 {[%clk 0:02:15]} 18. Ng5 {[%clk 0:01:57]}  Qd7 {[%clk 0:02:13]} 19. d4 {[%clk 0:01:57]}  Nxd4 {[%clk 0:02:03]} 20. Qc4+ {[%clk 0:01:55]}  Bd5 {[%clk 0:01:37]} 21. Bxd5+ {[%clk 0:01:33]}  Qxd5 {[%clk 0:01:37]} 22. Qxd5+ {[%clk 0:01:32]}  Rxd5 {[%clk 0:01:38]} 23. Bxd4 {[%clk 0:01:32]}  Bxd4+ {[%clk 0:01:37]} 24. Kg2 {[%clk 0:01:32]}  Bf6 {[%clk 0:01:29]} 25. Nf3 {[%clk 0:01:26]}  Kf7 {[%clk 0:01:23]} 26. b3 {[%clk 0:01:22]}  Rfd8 {[%clk 0:01:13]} 27. Re2 {[%clk 0:01:17]}  Rd3 {[%clk 0:01:08]} 28. b4 {[%clk 0:01:17]}  c4 {[%clk 0:01:05]} 29. a4 {[%clk 0:01:15]}  Re8 {[%clk 0:00:58]} 30. Rc2 {[%clk 0:01:11]}  c3 {[%clk 0:00:53]} 31. Rb3 {[%clk 0:01:06]}  Ree3 {[%clk 0:00:49]} 32. Ng1 {[%clk 0:00:25]}  Rd2+ {[%clk 0:00:42]} 33. Rxd2 {[%clk 0:00:25]}  cxd2 {[%clk 0:00:42]} 34. Rxe3 {[%clk 0:00:26]}  d1=Q {[%clk 0:00:42]} 35. Nf3 {[%clk 0:00:26]}  Qxa4 {[%clk 0:00:39]} 36. Rd3 {[%clk 0:00:23]}  Ke7 {[%clk 0:00:25]} 37. Re3+ {[%clk 0:00:22]}  Kd7 {[%clk 0:00:25]} 38. Rd3+ {[%clk 0:00:22]}  Kc6 {[%clk 0:00:23]} 39. h4 {[%clk 0:00:20]}  Qxb4 {[%clk 0:00:22]} 40. Kh3 {[%clk 0:00:16]}  a5 {[%clk 0:00:22]} 41. Nd2 {[%clk 0:00:16]}  a4 {[%clk 0:00:20]} 42. Nf3 {[%clk 0:00:13]}  a3 {[%clk 0:00:19]} 43. h5 {[%clk 0:00:14]}  a2 {[%clk 0:00:18]} 44. Rd1 {[%clk 0:00:14]}  a1=Q {[%clk 0:00:16]} 45. Rxa1 {[%clk 0:00:14]}  Bxa1 {[%clk 0:00:17]} 46. hxg6 {[%clk 0:00:14]}  hxg6 {[%clk 0:00:15]} 47. Nh4 {[%clk 0:00:15]}  Qd6 {[%clk 0:00:13]} 48. Nf3 {[%clk 0:00:14]}  Qf6 {[%clk 0:00:13]} 49. Ng5 {[%clk 0:00:14]}  Bd4 {[%clk 0:00:12]} 50. Nh7 {[%clk 0:00:14]}  Qh8 {[%clk 0:00:11]} 51. Kg2 {[%clk 0:00:14]}  Qxh7 {[%clk 0:00:12]} 52. Kf3 {[%clk 0:00:15]}  b5 {[%clk 0:00:12]} 53. Ke2 {[%clk 0:00:16]}  Kc5 {[%clk 0:00:12]} 54. Kd3 {[%clk 0:00:17]}  b4 {[%clk 0:00:13]} 55. g4 {[%clk 0:00:17]}  b3 {[%clk 0:00:13]} 56. g5 {[%clk 0:00:17]}  b2 {[%clk 0:00:13]} 57. Kd2 {[%clk 0:00:16]}  Qh2+ {[%clk 0:00:13]} 58. Kd3 {[%clk 0:00:14]}  b1=Q# {[%clk 0:00:13]} 0-1


[Site "https://www.chess.com"]

[Event "Titled Tuesday Blitz August 15 Early 2023"]
[White "Petre, Nad-Titus"]
[Black "Larina, Maria"]
[WhiteFideId "1204165"]
[BlackFideId "24113182"]
[WhiteElo "2576"]
[BlackElo "2123"]
[Result "1-0"]
[Round "9"]
[TimeControl "180+1"]
[Date "2023.08.15"]
[WhiteClock "0:00:30"]
[BlackClock "0:00:01"]
[Board "150"]

1. e4 {[%clk 0:03:00]}  c6 {[%clk 0:02:58]} 2. Nf3 {[%clk 0:02:55]}  d5 {[%clk 0:02:58]} 3. Nc3 {[%clk 0:02:56]}  Bg4 {[%clk 0:02:57]} 4. h3 {[%clk 0:02:54]}  Bxf3 {[%clk 0:02:57]} 5. Qxf3 {[%clk 0:02:55]}  e6 {[%clk 0:02:57]} 6. g4 {[%clk 0:02:45]}  d4 {[%clk 0:02:51]} 7. Ne2 {[%clk 0:02:41]}  Bc5 {[%clk 0:02:45]} 8. Bg2 {[%clk 0:02:36]}  Ne7 {[%clk 0:02:40]} 9. h4 {[%clk 0:02:33]}  Nd7 {[%clk 0:02:17]} 10. Qg3 {[%clk 0:02:30]}  Qa5 {[%clk 0:02:06]} 11. c3 {[%clk 0:02:20]}  dxc3 {[%clk 0:01:52]} 12. bxc3 {[%clk 0:02:20]}  Ba3 {[%clk 0:01:51]} 13. O-O {[%clk 0:02:17]}  Bxc1 {[%clk 0:01:36]} 14. Rfxc1 {[%clk 0:02:18]}  O-O {[%clk 0:01:30]} 15. d4 {[%clk 0:02:16]}  Nb6 {[%clk 0:01:26]} 16. c4 {[%clk 0:02:10]}  Rad8 {[%clk 0:01:16]} 17. h5 {[%clk 0:01:54]}  h6 {[%clk 0:01:15]} 18. Qc7 {[%clk 0:01:46]}  Rd7 {[%clk 0:01:14]} 19. Qg3 {[%clk 0:01:42]}  Qd2 {[%clk 0:01:08]} 20. Bf1 {[%clk 0:01:38]}  Rfd8 {[%clk 0:01:02]} 21. c5 {[%clk 0:01:34]}  Nbc8 {[%clk 0:00:52]} 22. Rd1 {[%clk 0:01:33]}  Qc2 {[%clk 0:00:48]} 23. Qe3 {[%clk 0:01:21]}  Kh8 {[%clk 0:00:34]} 24. Rd2 {[%clk 0:01:18]}  Qa4 {[%clk 0:00:33]} 25. Rad1 {[%clk 0:01:16]}  b6 {[%clk 0:00:30]} 26. Nc3 {[%clk 0:01:06]}  Qa3 {[%clk 0:00:29]} 27. cxb6 {[%clk 0:01:01]}  axb6 {[%clk 0:00:29]} 28. Rd3 {[%clk 0:01:00]}  Qa5 {[%clk 0:00:27]} 29. a4 {[%clk 0:00:56]}  Nd6 {[%clk 0:00:26]} 30. R3d2 {[%clk 0:00:50]}  Ng8 {[%clk 0:00:21]} 31. e5 {[%clk 0:00:45]}  Ne8 {[%clk 0:00:19]} 32. Bg2 {[%clk 0:00:45]}  Rc8 {[%clk 0:00:16]} 33. g5 {[%clk 0:00:44]}  hxg5 {[%clk 0:00:16]} 34. Ne4 {[%clk 0:00:44]}  Qxa4 {[%clk 0:00:06]} 35. Nxg5 {[%clk 0:00:41]}  Nh6 {[%clk 0:00:06]} 36. Be4 {[%clk 0:00:38]}  c5 {[%clk 0:00:03]} 37. Bc2 {[%clk 0:00:38]}  Qb4 {[%clk 0:00:02]} 38. Qe4 {[%clk 0:00:38]}  Nf5 {[%clk 0:00:02]} 39. d5 {[%clk 0:00:34]}  Qxe4 {[%clk 0:00:02]} 40. Bxe4 {[%clk 0:00:34]}  Rcd8 {[%clk 0:00:02]} 41. dxe6 {[%clk 0:00:29]}  Rxd2 {[%clk 0:00:02]} 42. Rxd2 {[%clk 0:00:29]}  Rxd2 {[%clk 0:00:01]} 43. exf7 {[%clk 0:00:30]}  Rd1+ {[%clk 0:00:01]} 44. Kh2 {[%clk 0:00:30]}  Nf6 {[%clk 0:00:01]} 45. f8=Q+ {[%clk 0:00:28]}  Ng8 {[%clk 0:00:02]} 46. Nf7+ {[%clk 0:00:28]}  Kh7 {[%clk 0:00:02]} 47. Bxf5+ {[%clk 0:00:29]}  g6 {[%clk 0:00:01]} 48. Bxg6# {[%clk 0:00:30]} 1-0


[Site "https://www.chess.com"]

[Event "Titled Tuesday Blitz August 15 Early 2023"]
[White "Tomaszewski, Kacper"]
[Black "KSho99"]
[WhiteFideId "1127373"]
[WhiteElo "2446"]
[BlackElo "2214"]
[Result "1-0"]
[Round "9"]
[TimeControl "180+1"]
[Date "2023.08.15"]
[WhiteClock "0:00:06"]
[BlackClock "0:00:01"]
[Board "152"]

1. e4 {[%clk 0:03:00]}  e6 {[%clk 0:02:56]} 2. Nf3 {[%clk 0:03:00]}  d5 {[%clk 0:02:56]} 3. e5 {[%clk 0:03:01]}  c5 {[%clk 0:02:54]} 4. c3 {[%clk 0:03:02]}  Qb6 {[%clk 0:02:51]} 5. a3 {[%clk 0:02:58]}  Bd7 {[%clk 0:02:50]} 6. b4 {[%clk 0:02:58]}  c4 {[%clk 0:02:47]} 7. a4 {[%clk 0:02:46]}  Nc6 {[%clk 0:02:43]} 8. a5 {[%clk 0:02:42]}  Qc7 {[%clk 0:02:43]} 9. Qe2 {[%clk 0:02:38]}  Nge7 {[%clk 0:02:39]} 10. Na3 {[%clk 0:02:25]}  a6 {[%clk 0:02:39]} 11. b5 {[%clk 0:02:05]}  Nxa5 {[%clk 0:02:37]} 12. d3 {[%clk 0:01:42]}  Nb3 {[%clk 0:02:25]} 13. Rb1 {[%clk 0:01:40]}  axb5 {[%clk 0:02:21]} 14. Bb2 {[%clk 0:01:32]}  Ng6 {[%clk 0:02:11]} 15. Nc2 {[%clk 0:01:31]}  Nc5 {[%clk 0:01:45]} 16. d4 {[%clk 0:01:21]}  Nd3+ {[%clk 0:01:39]} 17. Kd2 {[%clk 0:01:21]}  Ra2 {[%clk 0:01:29]} 18. Bc1 {[%clk 0:01:21]}  b4 {[%clk 0:01:13]} 19. Qe3 {[%clk 0:01:21]}  bxc3+ {[%clk 0:01:03]} 20. Kd1 {[%clk 0:01:19]}  Rxc2 {[%clk 0:00:40]} 21. Bxd3 {[%clk 0:01:14]}  cxd3 {[%clk 0:00:36]} 22. Qxd3 {[%clk 0:01:11]}  Ba4 {[%clk 0:00:33]} 23. Ke1 {[%clk 0:01:07]}  Ra2 {[%clk 0:00:19]} 24. Qe3 {[%clk 0:01:02]}  Be7 {[%clk 0:00:17]} 25. h4 {[%clk 0:01:01]}  b5 {[%clk 0:00:12]} 26. h5 {[%clk 0:01:01]}  Nf8 {[%clk 0:00:11]} 27. h6 {[%clk 0:00:57]}  g6 {[%clk 0:00:11]} 28. Rh3 {[%clk 0:00:55]}  b4 {[%clk 0:00:07]} 29. Ng5 {[%clk 0:00:53]}  b3 {[%clk 0:00:04]} 30. Qxc3 {[%clk 0:00:51]}  Qxc3+ {[%clk 0:00:02]} 31. Rxc3 {[%clk 0:00:52]}  Bxg5 {[%clk 0:00:02]} 32. Bxg5 {[%clk 0:00:51]}  Kd7 {[%clk 0:00:03]} 33. Bf6 {[%clk 0:00:41]}  Rg8 {[%clk 0:00:03]} 34. Rc5 {[%clk 0:00:33]}  Rc2 {[%clk 0:00:03]} 35. Ra1 {[%clk 0:00:25]}  Rxc5 {[%clk 0:00:03]} 36. dxc5 {[%clk 0:00:26]}  Bc6 {[%clk 0:00:03]} 37. Kd2 {[%clk 0:00:22]}  Kc8 {[%clk 0:00:02]} 38. Kc3 {[%clk 0:00:21]}  Nd7 {[%clk 0:00:03]} 39. Be7 {[%clk 0:00:19]}  Re8 {[%clk 0:00:02]} 40. Bd6 {[%clk 0:00:19]}  Kb7 {[%clk 0:00:03]} 41. Ra3 {[%clk 0:00:18]}  Bb5 {[%clk 0:00:02]} 42. Rxb3 {[%clk 0:00:18]}  Kc6 {[%clk 0:00:02]} 43. Kb4 {[%clk 0:00:15]}  Bf1 {[%clk 0:00:01]} 44. Ra3 {[%clk 0:00:07]}  Bxg2 {[%clk 0:00:01]} 45. Ra7 {[%clk 0:00:07]}  Be4 {[%clk 0:00:01]} 46. Rc7# {[%clk 0:00:06]} 1-0


[Site "https://www.chess.com"]

[Event "Titled Tuesday Blitz August 15 Early 2023"]
[White "Tqebuchava, Zurab"]
[Black "favesaul"]
[WhiteFideId "13601113"]
[WhiteElo "2194"]
[BlackElo "2427"]
[Result "0-1"]
[Round "9"]
[TimeControl "180+1"]
[Date "2023.08.15"]
[WhiteClock "0:00:00"]
[BlackClock "0:00:14"]
[Board "153"]

1. e4 {[%clk 0:03:00]}  e6 {[%clk 0:02:57]} 2. d3 {[%clk 0:02:56]}  d5 {[%clk 0:02:57]} 3. Nd2 {[%clk 0:02:56]}  c5 {[%clk 0:02:57]} 4. Ngf3 {[%clk 0:02:55]}  Nc6 {[%clk 0:02:58]} 5. g3 {[%clk 0:02:56]}  Nf6 {[%clk 0:02:58]} 6. Bg2 {[%clk 0:02:56]}  g6 {[%clk 0:02:59]} 7. O-O {[%clk 0:02:55]}  Bg7 {[%clk 0:02:59]} 8. e5 {[%clk 0:02:55]}  Nd7 {[%clk 0:02:59]} 9. Re1 {[%clk 0:02:56]}  Ndxe5 {[%clk 0:02:56]} 10. Nxe5 {[%clk 0:02:53]}  Nxe5 {[%clk 0:02:57]} 11. Nf3 {[%clk 0:02:38]}  Nxf3+ {[%clk 0:02:52]} 12. Qxf3 {[%clk 0:02:37]}  O-O {[%clk 0:02:52]} 13. h4 {[%clk 0:02:37]}  h6 {[%clk 0:02:46]} 14. c3 {[%clk 0:02:26]}  Bd7 {[%clk 0:02:39]} 15. Bf4 {[%clk 0:02:24]}  Bc6 {[%clk 0:02:32]} 16. Qe2 {[%clk 0:01:46]}  Re8 {[%clk 0:02:28]} 17. Be5 {[%clk 0:01:43]}  f6 {[%clk 0:02:24]} 18. Bf4 {[%clk 0:01:39]}  e5 {[%clk 0:02:25]} 19. Bd2 {[%clk 0:01:39]}  f5 {[%clk 0:02:13]} 20. Bh3 {[%clk 0:01:35]}  d4 {[%clk 0:02:07]} 21. h5 {[%clk 0:01:31]}  Qd5 {[%clk 0:02:05]} 22. Kh2 {[%clk 0:01:16]}  g5 {[%clk 0:01:53]} 23. c4 {[%clk 0:01:11]}  Qf7 {[%clk 0:01:52]} 24. Bg2 {[%clk 0:01:03]}  g4 {[%clk 0:01:25]} 25. Bxc6 {[%clk 0:00:53]}  Qxh5+ {[%clk 0:01:25]} 26. Kg2 {[%clk 0:00:53]}  Qh3+ {[%clk 0:01:24]} 27. Kg1 {[%clk 0:00:53]}  bxc6 {[%clk 0:01:25]} 28. Qf1 {[%clk 0:00:50]}  Qxf1+ {[%clk 0:01:15]} 29. Kxf1 {[%clk 0:00:50]}  a5 {[%clk 0:01:15]} 30. a4 {[%clk 0:00:48]}  Kf7 {[%clk 0:01:13]} 31. Ra3 {[%clk 0:00:42]}  Reb8 {[%clk 0:01:11]} 32. b3 {[%clk 0:00:37]}  Kg6 {[%clk 0:01:04]} 33. Rb1 {[%clk 0:00:35]}  Bf6 {[%clk 0:01:00]} 34. Ke2 {[%clk 0:00:34]}  Bg5 {[%clk 0:00:59]} 35. Ra2 {[%clk 0:00:27]}  Bxd2 {[%clk 0:00:52]} 36. Kxd2 {[%clk 0:00:26]}  Rb7 {[%clk 0:00:45]} 37. Kc2 {[%clk 0:00:26]}  Rab8 {[%clk 0:00:34]} 38. Rbb2 {[%clk 0:00:26]}  e4 {[%clk 0:00:33]} 39. dxe4 {[%clk 0:00:21]}  fxe4 {[%clk 0:00:32]} 40. Ra1 {[%clk 0:00:22]}  Rf8 {[%clk 0:00:28]} 41. Kd1 {[%clk 0:00:13]}  Rf3 {[%clk 0:00:26]} 42. Rab1 {[%clk 0:00:09]}  Rbf7 {[%clk 0:00:25]} 43. Ke1 {[%clk 0:00:09]}  e3 {[%clk 0:00:19]} 44. fxe3 {[%clk 0:00:04]}  Rxe3+ {[%clk 0:00:20]} 45. Kd1 {[%clk 0:00:00]}  Rxg3 {[%clk 0:00:14]} 0-1


[Site "https://www.chess.com"]